[Event "IIFL Wealth  4th Mumbai Junior U-13"]
[Site "Mumbai"]
[Date "2019.01.07"]
[Round "9"]
[White "Gosrani, Naiya"]
[Black "Yash Satish Parab"]
[Result "0-1"]
[ECO "C54"]
[WhiteElo "1235"]
[BlackElo "1058"]
[Annotator "NA RC"]
[PlyCount "151"]
[EventDate "2018.12.30"]
[EventType "swiss"]
[EventCountry "IND"]
[SourceTitle "playchess.com"]
[Source "ChessBase"]
[SourceQuality "1"]
[TimeControl "40/5400+30:1800+30"]

1. e4 {[%emt 0:00:00]} e5 {[%emt 0:00:00]} 2. Nf3 {[%emt 0:00:00]} Nc6 {[%emt 0:00:00]} 3. Bc4 {[%emt 0:00:00]} Bc5 {[%emt 0:00:00]} 4. c3 Nf6 {[%emt 0:00:03]} 5. d3 {[%emt 0:00:07]} d6 {[%emt 0:00:16]} 6. h3 {[%emt 0:00:36]} h6 {[%emt 0:00:12]} 7. Be3 {[%emt 0:00:59]} Bb6 {[%emt 0:00:42]} 8. Nbd2 {[%emt 0:01:31]} Be6 {[%emt 0:03:16]} 9. Bb3 {[%emt 0:04:22]} O-O {[%emt 0:04:33]} 10. Nf1 {[%emt 0:02:36]} Re8 {[%emt 0:11:19]} 11. Ng3 {[%emt 0:01:03]} d5 {[%emt 0:03:49]} 12. Qe2 {[%emt 0:02:39]} d4 {[%emt 0:02:34]} 13. Bd2 {[%emt 0:01:46]} Qe7 {[%emt 0:09:15]} 14. Nh4 {[%emt 0:08:22]} Qd7 {[%emt 0:07:33]} 15. Ngf5 {[%emt 0:03:47]} Ne7 {[%emt 0:01:35]} 16. Qf3 {[%emt 0:03:44]} Nxf5 {[%emt 0:01:17]} 17. Nxf5 {[%emt 0:00:05]} Bxf5 {[%emt 0:00:32]} 18. Qxf5 {[%emt 0:03:44]} Qxf5 {[%emt 0:01:57]} 19. exf5 {[%emt 0:00:06]} e4 {[%emt 0:01:02]} 20. O-O-O {[%emt 0:02:59]} exd3 {[%emt 0:01:31]} 21. Be1 {[%emt 0:04:03]} dxc3 {[%emt 0:01:56]} 22. bxc3 {[%emt 0:00:58]} Rad8 {[%emt 0:02:10]} 23. Bc4 {[%emt 0:01:45]} Ne4 {[%emt 0:05:44]} 24. Bxd3 {[%emt 0:03:56]} Nxf2 {[%emt 0:02:57]} 25. Bxf2 {[%emt 0:00:26]} Bxf2 {[%emt 0:00:07]} 26. Bc4 {[%emt 0:01:19]} Bc5 {[%emt 0:05:50]} 27. Kc2 {[%emt 0:05:28]} Kf8 {[%emt 0:02:59]} 28. Rxd8 {[%emt 0:03:27]} Rxd8 {[%emt 0:00:21]} 29. Re1 {[%emt 0:00:40]} Re8 {[%emt 0:01:03]} 30. Rd1 {[%emt 0:00:48]} Bd6 {[%emt 0:01:15]} 31. g4 {[%emt 0:02:13]} Re3 {[%emt 0:01:31]} 32. Rd3 {[%emt 0:00:19]} Rxd3 {[%emt 0:01:46]} 33. Kxd3 {[%emt 0:00:02]} Ke7 {[%emt 0:01:04]} 34. Ke4 {[%emt 0:02:01]} Kf6 {[%emt 0:00:41]} 35. Bb3 {[%emt 0:02:34]} Be5 {[%emt 0:02:07]} 36. c4 {[%emt 0:00:25]} Bd6 {[%emt 0:00:24]} 37. a4 {[%emt 0:01:57]} Kg5 {[%emt 0:04:25]} 38. Kf3 {[%emt 0:00:21]} h5 {[%emt 0:01:34]} 39. Bc2 {[%emt 0:02:51]} Kh4 {[%emt 0:03:12]} 40. gxh5 {[%emt 0:00:00]} Kxh3 {[%emt 0:00:00]} 41. f6 {[%emt 0:04:40]} gxf6 {[%emt 0:03:10]} 42. h6 {[%emt 0:03:11]} Bf8 {[%emt 0:00:37]} 43. Kf4 {[%emt 0:00:29]} Bxh6+ {[%emt 0:00:30]} 44. Kf5 {[%emt 0:00:14]} Bg5 {[%emt 0:00:37]} 45. c5 {[%emt 0:01:18]} Kg3 {[%emt 0:00:45]} 46. Bb3 {[%emt 0:00:11]} Kf2 {[%emt 0:00:30]} 47. Bxf7 {[%emt 0:00:13]} Be3 {[%emt 0:01:18]} 48. Kxf6 {[%emt 0:00:36]} Bxc5 {[%emt 0:00:14]} 49. Ke6 {[%emt 0:00:02]} Bd6 {[%emt 0:00:37]} 50. Kd7 {[%emt 0:01:21]} Ke3 51. Kc8 {[%emt 0:00:01]} b6 {[%emt 0:00:18]} 52. Kb7 {[%emt 0:00:01]} a5 {[%emt 0:00:06]} 53. Kc6 {[%emt 0:00:19]} Kd4 {[%emt 0:00:27]} 54. Be8 {[%emt 0:00:47]} Kc4 {[%emt 0:00:54]} 55. Kb7 {[%emt 0:00:10]} Kc5 {[%emt 0:00:49]} 56. Bb5 {[%emt 0:00:30]} Be5 {[%emt 0:01:10]} 57. Bc6 {[%emt 0:00:15]} Kd6 {[%emt 0:00:25]} 58. Bb5 {[%emt 0:00:46]} Bf6 {[%emt 0:00:16]} 59. Bc6 {[%emt 0:00:15]} Bd8 {[%emt 0:00:11]} 60. Bb5 {[%emt 0:00:36]} c5 {[%emt 0:00:16]} 61. Bc4 {[%emt 0:00:13]} Ke5 {[%emt 0:00:23]} 62. Kc6 {[%emt 0:00:14]} Kd4 {[%emt 0:00:16]} 63. Kb5 {[%emt 0:00:02]} Bc7 {[%emt 0:02:05]} 64. Bf1 {[%emt 0:01:14]} Bd8 {[%emt 0:01:11]} 65. Bc4 {[%emt 0:00:01]} Bh4 {[%emt 0:00:10]} 66. Bf1 {[%emt 0:00:29]} Bd8 {[%emt 0:00:28]} 67. Bc4 {[%emt 0:00:01]} Kc3 {[%emt 0:00:16]} 68. Bf1 {[%emt 0:00:19]} Kb3 {[%emt 0:00:25]} 69. Bc4+ {[%emt 0:00:08]} Ka3 {[%emt 0:00:06]} 70. Bf1 {[%emt 0:00:06]} Be7 {[%emt 0:00:43]} 71. Bc4 {[%emt 0:00:09]} Bf6 {[%emt 0:00:26]} 72. Bf1 {[%emt 0:01:41]} Bd4 {[%emt 0:00:50]} 73. Bc4 {[%emt 0:00:16]} Be5 {[%emt 0:00:46]} 74. Bf1 {[%emt 0:00:04]} Bc7 {[%emt 0:00:14]} 75. Bc4 {[%emt 0:00:01]} Bd8 {[%emt 0:00:38]} 76. Bf1 {[%emt 0:00:24] Kxa4+} 0-1

[Event "IIFL Wealth  4th Mumbai Junior U-13"]
[Site "Mumbai"]
[Date "2019.01.07"]
[Round "9"]
[White "Prakhar Chaturvedi"]
[Black "Varshita Jain"]
[Result "0-1"]
[ECO "C42"]
[WhiteElo "1235"]
[BlackElo "1461"]
[Annotator "NA RC"]
[PlyCount "130"]
[EventDate "2018.12.30"]
[EventType "swiss"]
[EventCountry "IND"]
[SourceTitle "playchess.com"]
[Source "ChessBase"]
[SourceQuality "1"]
[TimeControl "40/5400+30:1800+30"]

1. e4 {[%emt 0:00:05]} e5 {[%emt 0:00:00]} 2. Nf3 {[%emt 0:01:28]} Nf6 {[%emt 0:00:00]} 3. Nxe5 {[%emt 0:00:32]} d6 {[%emt 0:00:00]} 4. Nf3 {[%emt 0:00:20]} Nxe4 {[%emt 0:00:00]} 5. Nc3 {[%emt 0:00:10]} Nxc3 {[%emt 0:00:00]} 6. dxc3 {[%emt 0:00:08]} Be7 {[%emt 0:00:00]} 7. Be3 {[%emt 0:00:07]} O-O {[%emt 0:00:31]} 8. Qd2 {[%emt 0:01:39]} d5 {[%emt 0:00:15]} 9. O-O-O {[%emt 0:00:11]} c6 {[%emt 0:00:05]} 10. c4 {[%emt 0:00:29]} dxc4 {[%emt 0:13:34]} 11. Qxd8 {[%emt 0:01:42]} Rxd8 {[%emt 0:00:33]} 12. Bxc4 {[%emt 0:00:12]} Rxd1+ {[%emt 0:10:17]} 13. Rxd1 {[%emt 0:01:08]} Nd7 {[%emt 0:03:10]} 14. Re1 {[%emt 0:04:05]} Bf8 {[%emt 0:10:40]} 15. Bd4 {[%emt 0:00:54]} b5 {[%emt 0:03:41]} 16. Bd3 {[%emt 0:02:58]} c5 {[%emt 0:07:35]} 17. Be3 {[%emt 0:01:07]} a6 {[%emt 0:05:22]} 18. Be4 {[%emt 0:05:09]} Rb8 {[%emt 0:06:50]} 19. Bf4 {[%emt 0:01:08]} Rb6 {[%emt 0:02:54]} 20. Bc7 {[%emt 0:00:20]} Rf6 {[%emt 0:14:34]} 21. g4 {[%emt 0:07:01]} Bd6 {[%emt 0:06:16]} 22. Bd8 {[%emt 0:00:59]} Re6 {[%emt 0:08:57]} 23. h4 {[%emt 0:03:21]} Bf4+ {[%emt 0:02:25]} 24. Kb1 {[%emt 0:02:06]} c4 {[%emt 0:00:40]} 25. c3 {[%emt 0:01:14]} Nc5 {[%emt 0:00:53]} 26. Bd5 {[%emt 0:15:51]} Rxe1+ {[%emt 0:01:05]} 27. Nxe1 {[%emt 0:00:49]} Bxg4 {[%emt 0:00:27]} 28. f3 {[%emt 0:00:32]} Be6 {[%emt 0:01:14]} 29. Bc6 {[%emt 0:00:29]} Bf5+ {[%emt 0:01:25]} 30. Ka1 {[%emt 0:00:24]} Nd3 {[%emt 0:00:25]} 31. Ng2 {[%emt 0:00:53]} Bc1 {[%emt 0:00:09]} 32. b3 {[%emt 0:01:20]} Bb2+ {[%emt 0:00:31]} 33. Kb1 {[%emt 0:02:16]} Bxc3 {[%emt 0:00:14]} 34. Be4 {[%emt 0:00:22]} Bxe4 {[%emt 0:00:19]} 35. fxe4 {[%emt 0:00:05]} cxb3 {[%emt 0:00:37]} 36. axb3 {[%emt 0:00:08]} Nc5 {[%emt 0:00:18]} 37. Kc2 {[%emt 0:00:29]} b4 {[%emt 0:00:21]} 38. e5 {[%emt 0:00:45]} Bxe5 {[%emt 0:00:16]} 39. Be7 {[%emt 0:00:14]} Bd4 {[%emt 0:01:15]} 40. Nf4 {[%emt 0:00:00]} a5 {[%emt 0:00:00]} 41. Nd5 {[%emt 0:02:03]} f5 {[%emt 0:03:33]} 42. Bd8 {[%emt 0:00:18]} Nb7 {[%emt 0:00:24]} 43. Bc7 Bc5 {[%emt 0:02:48]} 44. Kd3 {[%emt 0:04:06]} Bd6 {[%emt 0:01:26]} 45. Bb6 {[%emt 0:00:20]} Kf7 {[%emt 0:01:18]} 46. Bd4 {[%emt 0:02:15]} Ke6 {[%emt 0:04:01]} 47. Kc4 {[%emt 0:03:10]} Be5 {[%emt 0:01:53]} 48. Bb6 {[%emt 0:00:09]} Bg3 {[%emt 0:03:53]} 49. h5 {[%emt 0:00:21]} Nd6+ {[%emt 0:00:07]} 50. Kc5 {[%emt 0:00:15]} Bf2+ {[%emt 0:00:35]} 51. Kc6 {[%emt 0:00:20]} Bxb6 {[%emt 0:00:12]} 52. Nxb6 {[%emt 0:00:05]} f4 {[%emt 0:00:39]} 53. Nd5 {[%emt 0:00:11]} f3 {[%emt 0:00:59]} 54. Nf4+ {[%emt 0:00:09]} Kf5 55. Nd5 {[%emt 0:00:45]} Ke4 {[%emt 0:05:13]} 56. Kxd6 {[%emt 0:01:58]} f2 {[%emt 0:00:05]} 57. Kc5 {[%emt 0:00:28]} f1=Q {[%emt 0:00:22]} 58. Nb6 {[%emt 0:00:12]} Qf5+ {[%emt 0:01:11]} 59. Kc4 {[%emt 0:00:40]} Qe6+ {[%emt 0:00:41]} 60. Kb5 {[%emt 0:00:06]} Qxb3 {[%emt 0:00:38]} 61. Nd7 {[%emt 0:01:14]} Qd5+ 62. Nc5+ {[%emt 0:00:09]} Kd4 {[%emt 0:00:42]} 63. Ka4 {[%emt 0:00:07]} Qxc5 {[%emt 0:00:30]} 64. Kb3 {[%emt 0:00:12]} Qc3+ {[%emt 0:00:11]} 65. Ka4 {[%emt 0:00:07]} Kc5 {[%emt 0:00:20]} 0-1

[Event "IIFL Wealth  4th Mumbai Junior U-13"]
[Site "Mumbai"]
[Date "2019.01.07"]
[Round "9"]
[White "Keerthana B"]
[Black "Jain Adi"]
[Result "0-1"]
[ECO "C55"]
[WhiteElo "1232"]
[BlackElo "1545"]
[Annotator "NA RC"]
[PlyCount "132"]
[EventDate "2018.12.30"]
[EventType "swiss"]
[EventCountry "IND"]
[SourceTitle "playchess.com"]
[Source "ChessBase"]
[SourceQuality "1"]
[TimeControl "40/5400+30:1800+30"]

1. e4 e5 2. Nf3 Nc6 3. Bc4 Nf6 4. d3 Be7 5. c3 O-O 6. Nbd2 d6 7. O-O Na5 8. Bb5 a6 9. Ba4 b5 10. Bc2 c5 11. Re1 Re8 12. Nf1 Bf8 13. Bg5 h6 14. Bxf6 Qxf6 15. Ne3 Be6 16. Qd2 Nc6 17. a3 Rad8 18. c4 Qf4 19. Qd1 Qf6 20. Nd5 Bxd5 21. cxd5 Nd4 22. Nxd4 cxd4 23. Qd2 Rc8 24. a4 Rc5 25. axb5 axb5 26. Ra7 Rec8 27. Bb3 Qd8 28. Rea1 Be7 29. f4 Bf6 30. Rb7 Ra8 31. Rf1 Rb8 32. Rxb8 Qxb8 33. fxe5 dxe5 34. Qf2 Qc7 35. h4 Rc1 36. g3 Rxf1+ 37. Qxf1 Qd7 38. Qf5 Qxf5 39. exf5 Kf8 40. Kf2 Be7 41. h5 Bd6 42. g4 Ke7 43. Kf3 Kf6 44. Ke4 Kg5 45. Bd1 Kf6 46. Bf3 Ke7 47. Bd1 Kf6 48. Bf3 Ke7 49. Bd1 f6 50. Bf3 Bb4 51. b3 Kd6 52. Bd1 Kc5 53. Bf3 Ba5 54. Bd1 Kb4 55. d6 Kc3 56. d7 b4 57. Kf3 Kd2 58. Be2 Kc2 59. Ke4 Kxb3 60. Kd5 Kc2 61. Ke6 b3 62. Kf7 b2 63. Kxg7 b1=Q 64. Kxh6 Qc1+ 65. Kh7 Bd8 66. h6 Qg5 0-1

[Event "IIFL Wealth  4th Mumbai Junior U-13"]
[Site "Mumbai"]
[Date "2019.01.07"]
[Round "9"]
[White "Roy Aanya"]
[Black "Amrit Raunak"]
[Result "1/2-1/2"]
[ECO "C92"]
[WhiteElo "1232"]
[BlackElo "1410"]
[Annotator "NA RC"]
[PlyCount "44"]
[EventDate "2018.12.30"]
[EventType "swiss"]
[EventCountry "IND"]
[SourceTitle "playchess.com"]
[Source "ChessBase"]
[SourceQuality "1"]
[TimeControl "40/5400+30:1800+30"]

1. e4 {[%emt 0:00:00]} e5 {[%emt 0:00:00]} 2. Nf3 {[%emt 0:00:00]} Nc6 {[%emt 0:00:00]} 3. Bb5 {[%emt 0:00:00]} a6 {[%emt 0:00:45]} 4. Ba4 {[%emt 0:00:00]} b5 {[%emt 0:00:05]} 5. Bb3 {[%emt 0:00:00]} Nf6 {[%emt 0:00:05]} 6. O-O {[%emt 0:00:01]} Be7 {[%emt 0:00:02]} 7. Re1 {[%emt 0:00:08]} O-O {[%emt 0:00:06]} 8. c3 {[%emt 0:00:19]} d6 {[%emt 0:00:33]} 9. h3 {[%emt 0:00:05]} Bb7 {[%emt 0:00:47]} 10. d3 {[%emt 0:00:11]} h6 {[%emt 0:00:08]} 11. Nbd2 {[%emt 0:01:32]} Kh8 {[%emt 0:00:21]} 12. Nf1 {[%emt 0:00:52]} Na5 {[%emt 0:01:47]} 13. Bc2 {[%emt 0:00:08]} c5 {[%emt 0:00:13]} 14. a3 {[%emt 0:00:05]} c4 {[%emt 0:01:42]} 15. d4 {[%emt 0:09:47] cxd3 [%clk 1:29:58] Qxd3 [%clk 1:21:56] Nc4 [%clk 1:29:05] b3 [%clk 1:21:02] Nb6 [%clk 1:29:31] Be3 [%clk 1:15:02] Nbd7 [%clk 1:29:15] Ng3 [%clk 1:11:38]} Qc7 {[%emt 0:02:02]} 16. Bd2 {[%emt 0:15:33] Nc5 [%clk 1:27:30] Qe2 [%clk 1:08:24] Ne6 [%clk 1:27:25]} b4 {[%emt 0:26:56] Bc8 [%clk 1:24:53] Nf5 [%clk 0:57:49] Nd8 [%clk 1:24:26] Nxe7 [%clk 0:56:52] Qxe7 [%clk 1:24:40] c4 [%clk 0:52:43] Bd7 [%clk 1:22:07] cxb5 [%clk 0:52:28] Bxb5 [%clk 1:22:29]} 17. Bd3 {[%emt 0:18:25] Qb7 [%clk 1:20:59] Bxb5 [%clk 0:49:06] Qxb5 [%clk 1:20:27] Qxb5 [%clk 0:49:14] axb5 [%clk 1:20:50] Nh4 [%clk 0:48:25] Nb7 [%clk 1:20:22] Nf5 [%clk 0:48:09]} h5 {[%emt 0:00:00] f3 [%clk 0:46:49] g6 [%clk 1:18:48]} 18. Ng3 {[%emt 0:05:00]} Rfc8 {[%emt 0:00:00] Rec1 [%clk 0:40:58] Kg7 [%clk 1:15:05] Rxc8 [%clk 0:39:58] Rxc8 [%clk 1:15:29]} 19. Rc1 {[%emt 0:07:07] Rxc1+ [%clk 1:14:13] Bxc1 [%clk 0:40:17]} d5 {[%emt 0:00:00]} 20. exd5 {[%emt 0:01:02]} Nxd5 {[%emt 0:00:00] Kf2 [%clk 0:39:55] f6 [%clk 1:13:54]} 21. Ne4 {[%emt 0:00:00] Kf7 [%clk 1:43:03] g4 [%clk 1:05:24] hxg4 [%clk 1:42:17] hxg4 [%clk 1:05:40] Ke6 [%clk 1:42:15] Ke2 [%clk 1:05:25]} Nb6 {[%emt 0:00:00] Kd3 [%clk 1:02:44] Nc4 [%clk 1:38:11]} 22. a4 {[%emt 0:00:00] Nbd6 [%clk 1:32:36] axb5 [%clk 1:02:38] Nb6 [%clk 1:29:10] Nxd6 [%clk 1:02:10] Kxd6 [%clk 1:29:16] Be3 [%clk 1:01:50]} Nd5 {[%emt 0:00:00] Bd2 [%clk 0:59:51] f5 [%clk 1:27:19] gxf5 [%clk 0:55:53] gxf5 [%clk 1:27:37] Kc4 [%clk 0:53:36] Nb6+ [%clk 1:27:44] Kd3 [%clk 0:54:03]} 1/2-1/2

[Event "IIFL Wealth  4th Mumbai Junior U-13"]
[Site "Mumbai"]
[Date "2019.01.07"]
[Round "9"]
[White "Marzouq, Chowdhury"]
[Black "Manavalan, Siddharth Krishna"]
[Result "1-0"]
[ECO "B22"]
[WhiteElo "1224"]
[BlackElo "1406"]
[Annotator "NA RC"]
[PlyCount "85"]
[EventDate "2018.12.30"]
[EventType "swiss"]
[EventCountry "IND"]
[SourceTitle "playchess.com"]
[Source "ChessBase"]
[SourceQuality "1"]
[TimeControl "40/5400+30:1800+30"]

1. e4 {[%emt 0:00:00]} c5 {[%emt 0:00:00]} 2. c3 {[%emt 0:00:00]} Nc6 {[%emt 0:00:11]} 3. d4 {[%emt 0:00:00]} e6 {[%emt 0:01:17]} 4. Nf3 {[%emt 0:00:30]} cxd4 {[%emt 0:01:30]} 5. cxd4 {[%emt 0:00:26]} Nf6 {[%emt 0:02:35]} 6. e5 {[%emt 0:01:50]} Nd5 {[%emt 0:00:56]} 7. Nc3 {[%emt 0:01:12]} Bb4 {[%emt 0:03:22]} 8. Bd2 {[%emt 0:00:53]} Nxc3 {[%emt 0:05:00]} 9. bxc3 {[%emt 0:00:25]} Be7 {[%emt 0:00:28]} 10. Bd3 {[%emt 0:01:04]} b6 {[%emt 0:00:44]} 11. Qc2 {[%emt 0:01:21]} Bb7 {[%emt 0:00:18]} 12. Bxh7 {[%emt 0:00:31]} g6 {[%emt 0:00:34]} 13. Bxg6 {[%emt 0:00:05]} fxg6 {[%emt 0:03:08]} 14. Qxg6+ {[%emt 0:00:09]} Kf8 {[%emt 0:00:01]} 15. Bh6+ {[%emt 0:00:30]} Rxh6 {[%emt 0:00:05]} 16. Qxh6+ {[%emt 0:00:17]} Ke8 {[%emt 0:00:02]} 17. h4 {[%emt 0:03:02]} Kf7 {[%emt 0:00:57]} 18. Ng5+ {[%emt 0:00:23]} Bxg5 {[%emt 0:00:21]} 19. hxg5 {[%emt 0:00:13]} Qg8 {[%emt 0:00:31]} 20. Qf6+ {[%emt 0:00:25]} Ke8 {[%emt 0:02:03]} 21. Rh8 {[%emt 0:00:58]} Ne7 {[%emt 0:02:19]} 22. Rxg8+ {[%emt 0:00:16]} Nxg8 {[%emt 0:00:09]} 23. Qg7 {[%emt 0:00:25]} Ne7 {[%emt 0:01:36]} 24. g6 {[%emt 0:00:10]} Nf5 {[%emt 0:20:10]} 25. Qf7+ {[%emt 0:00:56]} Kd8 {[%emt 0:01:25]} 26. g7 Nxg7 {[%emt 0:03:55]} 27. Qxg7 {[%emt 0:00:15]} Kc7 {[%emt 0:00:05]} 28. g4 {[%emt 0:00:15]} Be4 {[%emt 0:08:13]} 29. g5 {[%emt 0:00:09]} Re8 {[%emt 0:01:29]} 30. g6 {[%emt 0:00:07]} Kd8 {[%emt 0:00:52]} 31. Qf7 {[%emt 0:00:12]} Bf5 32. g7 Bh7 {[%emt 0:04:14]} 33. f4 {[%emt 0:00:43]} Bg8 {[%emt 0:00:34]} 34. Qf8 {[%emt 0:00:07]} Bh7 {[%emt 0:00:20]} 35. O-O-O {[%emt 0:00:46]} Bg8 {[%emt 0:00:43]} 36. Rh1 {[%emt 0:00:10]} a6 {[%emt 0:12:00]} 37. Rh8 {[%emt 0:01:42]} a5 {[%emt 0:06:05]} 38. Rxg8 {[%emt 0:00:08]} Kc7 {[%emt 0:16:20]} 39. Qd6+ {[%emt 0:00:05]} Kb7 {[%emt 0:04:15]} 40. Rxe8 {[%emt 0:00:38]} Ka6 {[%emt 0:01:13]} 41. Qxd7 {[%emt 0:00:00]} b5 {[%emt 0:00:00]} 42. Qc6+ {[%emt 0:00:00]} Ka7 {[%emt 0:00:00]} 43. Ra8# {[%emt 0:00:00]} 1-0

[Event "IIFL Wealth  4th Mumbai Junior U-13"]
[Site "Mumbai"]
[Date "2019.01.07"]
[Round "9"]
[White "Shah Viha"]
[Black "Virle Kimaya"]
[Result "0-1"]
[ECO "B76"]
[WhiteElo "1212"]
[BlackElo "1391"]
[Annotator "NA RC"]
[PlyCount "114"]
[EventDate "2018.12.30"]
[EventType "swiss"]
[EventCountry "IND"]
[SourceTitle "playchess.com"]
[Source "ChessBase"]
[SourceQuality "1"]
[TimeControl "40/5400+30:1800+30"]

1. e4 {[%emt 0:03:46]} c5 {[%emt 0:00:00]} 2. Nf3 {[%emt 0:00:57]} d6 {[%emt 0:00:00]} 3. d4 {[%emt 0:00:24]} cxd4 {[%emt 0:00:00]} 4. Nxd4 {[%emt 0:00:33]} Nf6 {[%emt 0:00:00]} 5. Nc3 {[%emt 0:00:28]} g6 {[%emt 0:00:01]} 6. f3 {[%emt 0:00:09]} Bg7 {[%emt 0:00:07]} 7. Be3 {[%emt 0:00:31]} O-O {[%emt 0:00:08]} 8. Qd2 {[%emt 0:00:11]} Nc6 {[%emt 0:00:06]} 9. O-O-O {[%emt 0:03:53]} Nxd4 {[%emt 0:00:22]} 10. Bxd4 {[%emt 0:00:56]} Be6 {[%emt 0:00:05]} 11. g4 {[%emt 0:01:36]} Qa5 {[%emt 0:00:10]} 12. g5 {[%emt 0:03:19]} Nh5 {[%emt 0:02:45]} 13. Bxg7 {[%emt 0:01:22]} Nxg7 {[%emt 0:00:20]} 14. a3 {[%emt 0:03:05]} Rfc8 {[%emt 0:00:59]} 15. Nd5 {[%emt 0:03:06]} Qxd2+ {[%emt 0:01:17]} 16. Rxd2 {[%emt 0:01:57]} Bxd5 {[%emt 0:00:14]} 17. Rxd5 {[%emt 0:00:11]} Nh5 {[%emt 0:00:36]} 18. Rb5 {[%emt 0:05:05]} Rc7 {[%emt 0:00:48]} 19. Rd5 {[%emt 0:04:16]} Nf4 {[%emt 0:01:16]} 20. Rd2 {[%emt 0:01:23]} Rac8 {[%emt 0:00:29]} 21. h4 {[%emt 0:01:53]} Rc5 {[%emt 0:00:55]} 22. Rg1 {[%emt 0:02:18]} R8c7 {[%emt 0:01:25]} 23. Rg4 {[%emt 0:04:05]} Ne6 {[%emt 0:01:24]} 24. Rgg2 {[%emt 0:03:12]} a6 {[%emt 0:01:11]} 25. Rge2 Nf4 {[%emt 0:02:06]} 26. Re3 {[%emt 0:02:29]} Kg7 {[%emt 0:02:00]} 27. Bd3 {[%emt 0:05:06]} h6 {[%emt 0:01:46]} 28. Bf1 {[%emt 0:00:56]} hxg5 {[%emt 0:00:36]} 29. hxg5 {[%emt 0:00:16]} Rxg5 {[%emt 0:00:08]} 30. Re1 {[%emt 0:01:26]} Rg1 {[%emt 0:01:42]} 31. Kd1 {[%emt 0:01:02]} Rc5 {[%emt 0:02:08]} 32. Rf2 {[%emt 0:02:49]} Kf6 {[%emt 0:03:00]} 33. Rh2 {[%emt 0:02:16]} Rh5 {[%emt 0:03:08]} 34. Rxh5 {[%emt 0:01:37]} gxh5 {[%emt 0:01:46]} 35. Bc4 {[%emt 0:06:06]} Rxe1+ {[%emt 0:01:09]} 36. Kxe1 {[%emt 0:01:44]} e6 {[%emt 0:00:07]} 37. Kf2 {[%emt 0:00:13]} Kg5 {[%emt 0:00:09]} 38. Kg3 {[%emt 0:03:39]} h4+ {[%emt 0:01:09]} 39. Kh2 {[%emt 0:01:05]} Ng6 {[%emt 0:00:28]} 40. Kh3 {[%emt 0:00:00]} Kf4 {[%emt 0:00:00]} 41. Kg2 {[%emt 0:02:48]} Ne5 {[%emt 0:01:03]} 42. Bd3 {[%emt 0:02:25]} Nxf3 {[%emt 0:01:22]} 43. Kh3 {[%emt 0:00:50]} Ne1 {[%emt 0:02:52]} 44. Kxh4 {[%emt 0:00:46]} Nxd3 {[%emt 0:00:02]} 45. cxd3 {[%emt 0:00:01]} Ke3 {[%emt 0:00:01]} 46. Kg5 {[%emt 0:00:06]} Kxd3 {[%emt 0:00:06]} 47. Kf4 {[%emt 0:00:17]} Kd4 {[%emt 0:00:14]} 48. Kf3 {[%emt 0:00:17]} d5 {[%emt 0:00:56]} 49. exd5 {[%emt 0:00:21]} Kxd5 {[%emt 0:00:04]} 50. Ke3 {[%emt 0:00:09]} Kc4 {[%emt 0:00:12]} 51. Kd2 {[%emt 0:00:23]} Kb3 {[%emt 0:00:07]} 52. Kc1 {[%emt 0:00:08]} f5 {[%emt 0:00:03]} 53. Kd2 {[%emt 0:00:22]} Kxb2 {[%emt 0:00:06]} 54. a4 {[%emt 0:00:10]} a5 {[%emt 0:00:07]} 55. Ke3 {[%emt 0:00:08]} Kb3 {[%emt 0:00:05]} 56. Kf4 {[%emt 0:00:07]} Kxa4 {[%emt 0:00:04]} 57. Ke3 {[%emt 0:00:11]} e5 {[%emt 0:00:06] Kd4} 0-1

[Event "IIFL Wealth  4th Mumbai Junior U-13"]
[Site "Mumbai"]
[Date "2019.01.07"]
[Round "9"]
[White "Suhaani Lohia"]
[Black "Dabhade Arnav"]
[Result "1/2-1/2"]
[ECO "C44"]
[WhiteElo "1200"]
[BlackElo "1064"]
[Annotator "NA RC"]
[PlyCount "53"]
[EventDate "2018.12.30"]
[EventType "swiss"]
[EventCountry "IND"]
[SourceTitle "playchess.com"]
[Source "ChessBase"]
[SourceQuality "1"]
[TimeControl "40/5400+30:1800+30"]

1. e4 {[%emt 0:09:37]} e5 {[%emt 0:00:00]} 2. Nf3 {[%emt 0:00:11]} Nc6 {[%emt 0:00:00]} 3. d4 {[%emt 0:00:32]} exd4 {[%emt 0:00:00]} 4. Bc4 {[%emt 0:00:10]} d6 {[%emt 0:00:00]} 5. O-O {[%emt 0:06:18]} Be7 {[%emt 0:02:56]} 6. Bb5 {[%emt 0:04:23]} Bd7 {[%emt 0:01:50]} 7. Bxc6 {[%emt 0:07:48]} Bxc6 {[%emt 0:00:08]} 8. Qxd4 {[%emt 0:05:49]} Nf6 {[%emt 0:00:33]} 9. Nc3 {[%emt 0:03:24]} O-O {[%emt 0:02:21]} 10. Re1 {[%emt 0:08:56]} Re8 {[%emt 0:04:43]} 11. Bg5 {[%emt 0:02:59]} h6 {[%emt 0:07:58]} 12. Bh4 {[%emt 0:04:29]} Qd7 {[%emt 0:07:47]} 13. Rad1 {[%emt 0:03:48]} a6 {[%emt 0:02:38]} 14. Bxf6 {[%emt 0:08:18]} Bxf6 {[%emt 0:00:18]} 15. e5 {[%emt 0:00:09]} Bxf3 {[%emt 0:05:24]} 16. gxf3 {[%emt 0:01:15]} Be7 {[%emt 0:05:00]} 17. exd6 {[%emt 0:02:21]} Bxd6 {[%emt 0:00:21]} 18. Qg4 {[%emt 0:00:16]} Rad8 {[%emt 0:07:54]} 19. Qxd7 {[%emt 0:01:16]} Rxe1+ {[%emt 0:00:12]} 20. Rxe1 {[%emt 0:00:56]} Rxd7 {[%emt 0:00:08]} 21. Re8+ {[%emt 0:03:12]} Kh7 {[%emt 0:00:09]} 22. Rc8 {[%emt 0:03:00]} Kg6 {[%emt 0:00:19]} 23. Re8 {[%emt 0:00:04]} Kh7 {[%emt 0:00:41]} 24. Rc8 {[%emt 0:00:05]} Kg6 {[%emt 0:00:06]} 25. Re8 {[%emt 0:00:10]} Kh7 {[%emt 0:00:17]} 26. Rc8 {[%emt 0:00:04]} Kg6 {[%emt 0:00:08]} 27. Re8 {[%emt 0:00:03]} 1/2-1/2